[Event "Krakow Championship-B 2022"]
[Site "Krakow"]
[Date "2022.07.01"]
[Round "8.7"]
[White "Cattaruzzo, Nicolo`"]
[Black "Kulesza, Andrzej"]
[Result "0-1"]
[ECO "A45"]
[WhiteElo "1744"]
[BlackElo "1998"]
[Annotator "RC"]
[PlyCount "160"]
[EventDate "2022.06.25"]
[EventType "swiss"]
[EventCountry "POL"]
[SourceTitle "playchess.com"]
[Source "ChessBase"]
[SourceQuality "1"]
[TimeControl "40/5400+30:1800+30"]

1. d4 {[%emt 0:00:25]} Nf6 {[%emt 0:00:39]} 2. Bg5 {[%emt 0:00:48]} Ne4 {[%emt 0:02:36]} 3. Bf4 {[%emt 0:00:57]} c5 {[%emt 0:00:31]} 4. f3 {[%emt 0:00:57]} Qa5+ {[%emt 0:01:15]} 5. c3 {[%emt 0:01:24]} Nf6 {[%emt 0:01:19]} 6. d5 {[%emt 0:00:45]} d6 {[%emt 0:01:34]} 7. e4 {[%emt 0:02:25]} Nbd7 {[%emt 0:02:37]} 8. Na3 {[%emt 0:02:36]} a6 {[%emt 0:04:05]} 9. Nc4 {[%emt 0:01:59]} Qc7 {[%emt 0:00:21]} 10. a4 {[%emt 0:00:53]} b6 {[%emt 0:00:51]} 11. Bd3 {[%emt 0:03:20]} g6 {[%emt 0:02:05]} 12. g4 {[%emt 0:05:21]} h6 {[%emt 0:02:38]} 13. Ne2 {[%emt 0:06:08]} Bg7 {[%emt 0:05:07]} 14. Qd2 {[%emt 0:01:54]} Bb7 {[%emt 0:05:09]} 15. Ng3 {[%emt 0:02:42]} Ne5 {[%emt 0:04:45]} 16. Nxe5 {[%emt 0:03:18]} dxe5 {[%emt 0:00:07]} 17. Be3 {[%emt 0:00:14]} Rd8 {[%emt 0:01:57]} 18. Qe2 {[%emt 0:06:17]} Ra8 {[%emt 0:02:09]} 19. Qd2 {[%emt 0:01:55]} c4 {[%emt 0:02:32]} 20. Bc2 {[%emt 0:02:24]} Rd8 {[%emt 0:01:23]} 21. a5 {[%emt 0:10:54]} bxa5 {[%emt 0:00:24]} 22. Qf2 {[%emt 0:00:10]} Nd7 {[%emt 0:00:09]} 23. O-O {[%emt 0:02:45]} O-O {[%emt 0:00:43]} 24. Ra4 {[%emt 0:02:16]} Rfe8 {[%emt 0:01:38]} 25. f4 Rc8 {[%emt 0:11:13]} 26. f5 {[%emt 0:11:22]} Nf6 {[%emt 0:00:40]} 27. fxg6 {[%emt 0:01:43]} fxg6 {[%emt 0:00:14]} 28. h3 {[%emt 0:07:37]} Rf8 {[%emt 0:05:38]} 29. Qd2 {[%emt 0:02:06]} Kh7 {[%emt 0:00:47]} 30. Rfa1 {[%emt 0:00:28]} Qd7 {[%emt 0:08:06]} 31. Kh2 {[%emt 0:03:11]} e6 {[%emt 0:00:40]} 32. Rxa5 {[%emt 0:03:03]} Qd6 {[%emt 0:03:34]} 33. dxe6 {[%emt 0:03:39]} Qxe6 {[%emt 0:00:11]} 34. Qe2 {[%emt 0:00:44]} Nd7 {[%emt 0:02:28]} 35. Rf1 {[%emt 0:01:55]} Rg8 {[%emt 0:02:15]} 36. Qf2 {[%emt 0:01:27]} Qd6 {[%emt 0:01:31]} 37. Rd1 {[%emt 0:01:49]} Qe7 {[%emt 0:00:07]} 38. Qd2 {[%emt 0:01:16]} Rgd8 {[%emt 0:07:44]} 39. Qe2 {[%emt 0:01:49]} Qe6 {[%emt 0:01:54]} 40. Ra4 {[%emt 0:02:25]} Bf6 {[%emt 0:01:08]} 41. Rd2 {[%emt 0:32:55]} Be7 {[%emt 0:31:46]} 42. Ra1 {[%emt 0:00:00]} Nc5 {[%emt 0:00:00]} 43. Rad1 {[%emt 0:00:00]} Rf8 {[%emt 0:00:00]} 44. Rf1 {[%emt 0:00:00]} Bc6 {[%emt 0:00:00]} 45. Qd1 {[%emt 0:00:00]} Bb5 {[%emt 0:00:00]} 46. Rdf2 {[%emt 0:00:00]} Rxf2+ {[%emt 0:00:00]} 47. Rxf2 {[%emt 0:00:00]} Nd3 {[%emt 0:00:00]} 48. Bxd3 {[%emt 0:00:00]} cxd3 {[%emt 0:00:00]} 49. Bd2 {[%emt 0:00:00]} Bc4 {[%emt 0:00:00]} 50. b4 {[%emt 0:00:00]} Rd8 {[%emt 0:00:00]} 51. Qf1 {[%emt 0:00:00]} Rd7 {[%emt 0:00:00]} 52. Qc1 {[%emt 0:00:00]} g5 {[%emt 0:00:00]} 53. Nf5 {[%emt 0:00:00]} Qc6 {[%emt 0:00:00]} 54. Qe1 {[%emt 0:00:00]} Bd8 {[%emt 0:00:00]} 55. Rf3 {[%emt 0:00:00]} Qg6 {[%emt 0:00:00]} 56. Qf1 {[%emt 0:00:00]} a5 {[%emt 0:00:00]} 57. bxa5 {[%emt 0:00:00]} Bxa5 {[%emt 0:00:00]} 58. Qa1 {[%emt 0:00:03]} Bd8 {[%emt 0:01:15]} 59. Qa8 {[%emt 0:01:17]} Qa6 {[%emt 0:01:13]} 60. Qb8 {[%emt 0:03:19]} Qa2 {[%emt 0:02:08]} 61. Rf2 {[%emt 0:00:18]} Qa7 {[%emt 0:00:59]} 62. Qxa7 {[%emt 0:00:40]} Rxa7 {[%emt 0:00:03]} 63. Nd6 {[%emt 0:00:47]} Bb3 {[%emt 0:00:34]} 64. Rf3 {[%emt 0:01:29]} Rd7 {[%emt 0:01:15]} 65. Nf5 {[%emt 0:01:21]} Ba5 {[%emt 0:00:17]} 66. Ne3 {[%emt 0:00:32]} Kg6 {[%emt 0:01:20]} 67. Rf8 {[%emt 0:00:54]} Bd8 {[%emt 0:09:28]} 68. Kg2 {[%emt 0:00:50]} Kg7 {[%emt 0:00:32]} 69. Rf1 {[%emt 0:00:35]} Ra7 {[%emt 0:00:14]} 70. Rc1 {[%emt 0:01:11]} Ra2 {[%emt 0:00:21]} 71. Nf1 {[%emt 0:00:39]} Bc2 {[%emt 0:01:17]} 72. Kf3 {[%emt 0:01:10]} Be7 {[%emt 0:00:24]} 73. Re1 {[%emt 0:00:52]} Kf7 {[%emt 0:00:35]} 74. Ne3 {[%emt 0:00:38]} Ba4 {[%emt 0:00:48]} 75. Nf1 {[%emt 0:00:24]} Ke6 {[%emt 0:01:12]} 76. Rb1 {[%emt 0:00:18]} Bc5 {[%emt 0:00:40]} 77. Be3 {[%emt 0:00:42]} Bc2 {[%emt 0:02:57]} 78. Rb5 {[%emt 0:00:33]} d2 {[%emt 0:01:23]} 79. Nxd2 {[%emt 0:00:30]} Bd1+ {[%emt 0:00:08]} 80. Kf2 {[%emt 0:00:21]} Rxd2+ {[%emt 0:00:04]} 0-1

[Event "Krakow Championship-B 2022"]
[Site "Krakow"]
[Date "2022.07.01"]
[Round "8.8"]
[White "Owoc, Jakub"]
[Black "Maciejewski, Kamil"]
[Result "0-1"]
[ECO "A05"]
[WhiteElo "1741"]
[BlackElo "1939"]
[Annotator "ChessBase"]
[PlyCount "172"]
[EventDate "2022.06.25"]
[EventType "swiss"]
[EventCountry "POL"]
[SourceTitle "playchess.com"]
[Source "ChessBase"]
[SourceQuality "1"]
[TimeControl "40/5400+30:1800+30"]

1. Nf3 {[%emt 0:00:04]} Nf6 {[%emt 0:00:30]} 2. b3 {[%emt 0:00:07]} b6 {[%emt 0:02:45]} 3. Bb2 {[%emt 0:00:55]} Bb7 {[%emt 0:00:30]} 4. e3 {[%emt 0:00:09]} e6 {[%emt 0:02:57]} 5. Be2 {[%emt 0:00:09]} Be7 {[%emt 0:01:28]} 6. c4 {[%emt 0:00:07]} c5 {[%emt 0:02:31]} 7. d4 {[%emt 0:00:06]} O-O {[%emt 0:05:30]} 8. O-O {[%emt 0:02:01]} d5 {[%emt 0:04:19]} 9. Nc3 {[%emt 0:05:07]} Nc6 {[%emt 0:07:19]} 10. Rc1 {[%emt 0:00:48]} cxd4 {[%emt 0:04:30]} 11. Nxd4 {[%emt 0:01:44]} Nxd4 {[%emt 0:05:19]} 12. Qxd4 {[%emt 0:00:38]} dxc4 {[%emt 0:04:04]} 13. Qxc4 {[%emt 0:03:02]} Rc8 {[%emt 0:04:33]} 14. Qa4 {[%emt 0:07:25]} Qd2 {[%emt 0:07:18]} 15. Ba1 {[%emt 0:19:14]} Rxc3 {[%emt 0:05:20]} 16. Bxc3 {[%emt 0:06:58]} Qxe2 {[%emt 0:00:11]} 17. Qxa7 {[%emt 0:00:44]} Qa6 {[%emt 0:02:35]} 18. Qxa6 {[%emt 0:00:05]} Bxa6 {[%emt 0:00:06]} 19. Bxf6 {[%emt 0:01:47]} gxf6 {[%emt 0:03:48]} 20. Rfd1 {[%emt 0:00:09]} Bc5 {[%emt 0:04:53]} 21. a3 {[%emt 0:01:37]} Ra8 {[%emt 0:03:05]} 22. b4 {[%emt 0:02:46]} Bf8 {[%emt 0:00:39]} 23. Rc6 {[%emt 0:03:50]} Be2 {[%emt 0:03:10]} 24. Rd4 {[%emt 0:10:37]} b5 {[%emt 0:05:24]} 25. f3 {[%emt 0:00:35]} f5 {[%emt 0:00:58]} 26. e4 {[%emt 0:09:46]} Rxa3 {[%emt 0:03:18]} 27. exf5 {[%emt 0:00:57]} exf5 {[%emt 0:00:31]} 28. Rf4 {[%emt 0:05:35]} Bd3 {[%emt 0:03:48]} 29. g4 {[%emt 0:00:34]} Rb3 {[%emt 0:01:57]} 30. Rc8 {[%emt 0:00:15]} Kg7 {[%emt 0:01:48]} 31. Rd8 {[%emt 0:04:25]} Be7 {[%emt 0:01:25]} 32. Re8 {[%emt 0:00:23]} Rxb4 {[%emt 0:02:14]} 33. Rxb4 {[%emt 0:02:15]} Bxb4 {[%emt 0:00:09]} 34. g5 {[%emt 0:00:14]} Bd2 {[%emt 0:03:35]} 35. h4 {[%emt 0:00:04]} f4 {[%emt 0:01:08]} 36. Kg2 {[%emt 0:00:08]} Be3 {[%emt 0:00:49]} 37. h5 {[%emt 0:00:07]} h6 {[%emt 0:02:27]} 38. Kh3 {[%emt 0:00:28]} Bf5+ {[%emt 0:00:37]} 39. Kg2 {[%emt 0:00:05]} hxg5 {[%emt 0:00:37]} 40. Re5 {[%emt 0:00:04]} Bd3 {[%emt 0:01:08]} 41. Rxg5+ {[%emt 0:30:08]} Kh6 {[%emt 0:30:50]} 42. Rd5 {[%emt 0:00:23]} Bc4 {[%emt 0:00:34]} 43. Re5 {[%emt 0:00:10]} b4 {[%emt 0:00:00]} 44. Re4 {[%emt 0:00:00]} Be6 {[%emt 0:00:00]} 45. Rxb4 {[%emt 0:00:00]} Kxh5 {[%emt 0:00:00]} 46. Rb5+ {[%emt 0:00:00]} Kg6 {[%emt 0:00:00]} 47. Ra5 {[%emt 0:00:00]} Kf6 {[%emt 0:00:00]} 48. Rb5 {[%emt 0:00:00]} Bc4 {[%emt 0:00:00]} 49. Ra5 {[%emt 0:00:00]} Ke6 {[%emt 0:00:00]} 50. Rg5 {[%emt 0:00:00]} Bd5 {[%emt 0:00:00]} 51. Rh5 {[%emt 0:00:00]} Kd6 {[%emt 0:00:00]} 52. Rh8 {[%emt 0:00:00]} Ke5 {[%emt 0:00:00]} 53. Re8+ {[%emt 0:00:00]} Kd4 {[%emt 0:00:00]} 54. Rd8 {[%emt 0:00:00]} Kc4 {[%emt 0:00:00]} 55. Rd7 {[%emt 0:00:00]} Be6 {[%emt 0:00:00]} 56. Rd8 {[%emt 0:00:00]} Bd4 {[%emt 0:00:00]} 57. Ra8 {[%emt 0:00:00]} Kd3 {[%emt 0:00:00]} 58. Ra4 {[%emt 0:00:00]} Ke3 {[%emt 0:00:00]} 59. Ra3+ {[%emt 0:00:00]} Ke2 {[%emt 0:00:00]} 60. Ra4 {[%emt 0:00:00]} Be3 {[%emt 0:00:00]} 61. Ra5 {[%emt 0:00:00]} Bc4 {[%emt 0:00:00]} 62. Re5 {[%emt 0:00:00]} Ke1 {[%emt 0:00:00]} 63. Ra5 {[%emt 0:00:00]} Bf1+ {[%emt 0:00:00]} 64. Kh1 {[%emt 0:00:00]} Kf2 {[%emt 0:00:00]} 65. Rf5 {[%emt 0:00:00]} Bc4 {[%emt 0:00:00]} 66. Rxf4 {[%emt 0:00:00]} Bd5 {[%emt 0:00:00]} 67. Rf5 {[%emt 0:00:00]} Be6 {[%emt 0:00:00]} 68. Rf6 {[%emt 0:00:00]} Bg5 {[%emt 0:00:00]} 69. Rf4 {[%emt 0:00:00]} Kg3 {[%emt 0:01:09]} 70. Ra4 {[%emt 0:00:00]} Kxf3 {[%emt 0:01:11]} 71. Ra1 {[%emt 0:00:00]} Be3 {[%emt 0:00:47]} 72. Kh2 {[%emt 0:00:00]} Bg4 {[%emt 0:00:57]} 73. Ra2 {[%emt 0:01:12]} f5 {[%emt 0:00:42]} 74. Rg2 {[%emt 0:00:15]} Bf2 {[%emt 0:01:17]} 75. Kh1 {[%emt 0:00:12]} f4 {[%emt 0:00:48]} 76. Kh2 {[%emt 0:00:22]} Bg3+ {[%emt 0:00:43]} 77. Kg1 {[%emt 0:00:20]} Ke3 {[%emt 0:01:19]} 78. Ra2 {[%emt 0:00:17]} Be2 {[%emt 0:01:08]} 79. Kg2 {[%emt 0:00:38]} Be1 {[%emt 0:00:33]} 80. Ra7 {[%emt 0:01:43]} f3+ {[%emt 0:00:40]} 81. Kh2 {[%emt 0:00:06]} f2 {[%emt 0:01:32]} 82. Rf7 {[%emt 0:00:39]} Bf3 {[%emt 0:01:14]} 83. Re7+ {[%emt 0:00:34]} Kd2 {[%emt 0:00:16]} 84. Rd7+ {[%emt 0:00:09]} Kc2 {[%emt 0:00:16]} 85. Rf7 {[%emt 0:00:22]} f1=Q {[%emt 0:00:21]} 86. Rxf3 {[%emt 0:00:04]} Qxf3 {[%emt 0:00:13]} 0-1

[Event "Krakow Championship-B 2022"]
[Site "Krakow"]
[Date "2022.07.01"]
[Round "8.9"]
[White "Cwiek, Ryszard"]
[Black "Zarebska, Lena"]
[Result "1-0"]
[ECO "B20"]
[WhiteElo "1880"]
[BlackElo "1829"]
[Annotator "NA RC"]
[PlyCount "125"]
[EventDate "2022.06.25"]
[EventType "swiss"]
[EventCountry "POL"]
[SourceTitle "playchess.com"]
[Source "ChessBase"]
[SourceQuality "1"]
[TimeControl "40/5400+30:1800+30"]

1. e4 c5 {[%emt 0:00:07]} 2. Ne2 {[%emt 0:00:08]} g6 {[%emt 0:00:10]} 3. Nbc3 {[%emt 0:00:34]} Bg7 {[%emt 0:00:11]} 4. g3 {[%emt 0:00:06]} Nc6 {[%emt 0:00:51]} 5. Bg2 {[%emt 0:00:05]} d6 {[%emt 0:01:51]} 6. d3 {[%emt 0:02:06]} e6 {[%emt 0:00:30]} 7. O-O {[%emt 0:00:11]} Nge7 {[%emt 0:00:06]} 8. Be3 {[%emt 0:02:41]} a6 {[%emt 0:05:05]} 9. f4 {[%emt 0:02:59]} Nd4 {[%emt 0:03:28]} 10. Qd2 {[%emt 0:05:04]} h5 {[%emt 0:11:52]} 11. Nd1 {[%emt 0:07:00]} Qc7 {[%emt 0:05:26]} 12. c3 {[%emt 0:01:36]} Nxe2+ {[%emt 0:00:04]} 13. Qxe2 {[%emt 0:00:02]} Bd7 {[%emt 0:06:12]} 14. Qf2 {[%emt 0:23:00]} Rc8 {[%emt 0:07:27]} 15. d4 {[%emt 0:14:57]} Bb5 {[%emt 0:09:06]} 16. Re1 O-O 17. Bh3 {[%emt 0:10:52]} Bd3 {[%emt 0:08:36]} 18. Bg2 {[%emt 0:14:32]} cxd4 {[%emt 0:13:05]} 19. Bxd4 {[%emt 0:00:43]} e5 {[%emt 0:00:50]} 20. Bb6 {[%emt 0:03:39]} Qd7 {[%emt 0:01:40]} 21. Qd2 {[%emt 0:01:25]} Bb5 {[%emt 0:05:32]} 22. Nf2 {[%emt 0:00:38]} Qc6 {[%emt 0:04:42]} 23. Be3 {[%emt 0:00:06]} f6 {[%emt 0:02:15]} 24. Bh3 {[%emt 0:02:12]} f5 {[%emt 0:00:39]} 25. Rad1 {[%emt 0:03:31]} Rcd8 {[%emt 0:00:40]} 26. Bg2 {[%emt 0:01:14]} Qc7 {[%emt 0:00:51]} 27. Nh3 {[%emt 0:00:53]} Bf6 {[%emt 0:02:22]} 28. Qf2 {[%emt 0:00:25]} Qc8 {[%emt 0:03:02]} 29. Bb6 {[%emt 0:00:28]} Rd7 {[%emt 0:00:06]} 30. exf5 {[%emt 0:01:20]} gxf5 {[%emt 0:00:31]} 31. Bf3 {[%emt 0:02:50]} Qe8 {[%emt 0:01:59]} 32. fxe5 {[%emt 0:00:25]} dxe5 {[%emt 0:00:03]} 33. Rxd7 {[%emt 0:00:13]} Bxd7 {[%emt 0:00:13]} 34. Bxb7 {[%emt 0:00:41]} f4 {[%emt 0:00:32]} 35. Qg2 {[%emt 0:00:49]} Kh8 {[%emt 0:03:11]} 36. gxf4 {[%emt 0:00:29]} exf4 {[%emt 0:04:31]} 37. Ng5 {[%emt 0:00:06]} Bxg5 {[%emt 0:00:31]} 38. Qxg5 {[%emt 0:00:02]} Rg8 {[%emt 0:00:42]} 39. Bd4+ {[%emt 0:00:05]} Kh7 {[%emt 0:00:06]} 40. Be4+ {[%emt 0:00:04]} Bf5 {[%emt 0:00:27]} 41. Bxf5+ {[%emt 0:30:39]} Nxf5 {[%emt 0:30:24]} 42. Rxe8 {[%emt 0:00:09]} Rxg5+ {[%emt 0:00:04]} 43. Kf2 {[%emt 0:00:10]} Nxd4 {[%emt 0:00:10]} 44. cxd4 {[%emt 0:00:01]} Rd5 {[%emt 0:00:00]} 45. Re4 {[%emt 0:00:00]} Rf5 {[%emt 0:00:00]} 46. Kf3 {[%emt 0:00:00]} Ra5 {[%emt 0:00:00]} 47. a3 {[%emt 0:00:00]} Rb5 {[%emt 0:00:00]} 48. b4 {[%emt 0:00:00]} Rb6 {[%emt 0:00:00]} 49. Rxf4 {[%emt 0:00:00]} a5 {[%emt 0:00:00]} 50. d5 {[%emt 0:00:00]} axb4 {[%emt 0:00:00]} 51. axb4 {[%emt 0:00:00]} Kg6 {[%emt 0:00:00]} 52. h4 {[%emt 0:00:00]} Rb5 {[%emt 0:00:00]} 53. Rd4 {[%emt 0:00:00]} Kf7 {[%emt 0:00:00]} 54. d6 {[%emt 0:00:00]} Ke8 {[%emt 0:00:00]} 55. d7+ {[%emt 0:00:00]} Kd8 {[%emt 0:00:00]} 56. Ke4 {[%emt 0:00:00]} Rb6 {[%emt 0:00:00]} 57. Kd3 {[%emt 0:00:00]} Rc6 {[%emt 0:00:00]} 58. Ke4 {[%emt 0:00:00]} Rb6 {[%emt 0:00:00]} 59. Kd5 {[%emt 0:00:00]} Rg6 {[%emt 0:00:00]} 60. Kc5 {[%emt 0:00:00]} Rg1 {[%emt 0:00:00]} 61. b5 {[%emt 0:00:00]} Rg4 {[%emt 0:00:00]} 62. Rxg4 {[%emt 0:00:00]} hxg4 {[%emt 0:00:00]} 63. Kd4 {[%emt 0:00:00]} 1-0

[Event "Krakow Championship-B 2022"]
[Site "Krakow"]
[Date "2022.07.01"]
[Round "8.10"]
[White "Cichon, Bartlomiej"]
[Black "Marciniak, Leonard"]
[Result "1/2-1/2"]
[ECO "B36"]
[WhiteElo "1895"]
[BlackElo "1799"]
[Annotator "NA RC"]
[PlyCount "100"]
[EventDate "2022.06.25"]
[EventType "swiss"]
[EventCountry "POL"]
[SourceTitle "playchess.com"]
[Source "ChessBase"]
[SourceQuality "1"]
[TimeControl "40/5400+30:1800+30"]

1. e4 {[%emt 0:00:02]} c5 {[%emt 0:00:16]} 2. Nf3 {[%emt 0:00:06]} Nc6 {[%emt 0:00:05]} 3. d4 {[%emt 0:00:04]} cxd4 {[%emt 0:00:05]} 4. Nxd4 {[%emt 0:00:05]} g6 {[%emt 0:00:07]} 5. c4 {[%emt 0:00:09]} Nf6 {[%emt 0:00:09]} 6. Nc3 {[%emt 0:00:30]} Nxd4 {[%emt 0:00:09]} 7. Qxd4 {[%emt 0:00:12]} d6 {[%emt 0:00:06]} 8. Be3 {[%emt 0:02:21]} Bg7 {[%emt 0:00:21]} 9. Be2 {[%emt 0:04:24]} O-O {[%emt 0:00:22]} 10. Qd2 {[%emt 0:00:25]} a5 {[%emt 0:01:03]} 11. O-O {[%emt 0:10:34]} a4 {[%emt 0:00:02]} 12. f3 {[%emt 0:00:36]} Qa5 {[%emt 0:04:31]} 13. Rac1 {[%emt 0:06:27]} Be6 {[%emt 0:08:49]} 14. Nb5 {[%emt 0:08:54]} Qxd2 {[%emt 0:02:42]} 15. Bxd2 {[%emt 0:00:04]} Nd7 {[%emt 0:05:48]} 16. Rc2 {[%emt 0:06:15]} Rfc8 {[%emt 0:02:10]} 17. Be3 {[%emt 0:02:38]} Nc5 {[%emt 0:01:22]} 18. Rb1 {[%emt 0:07:33]} f5 {[%emt 0:01:06]} 19. Nd4 {[%emt 0:12:05]} fxe4 {[%emt 0:10:02]} 20. Nxe6 {[%emt 0:02:18]} Nxe6 {[%emt 0:00:41]} 21. fxe4 {[%emt 0:00:20]} Bd4 {[%emt 0:01:05]} 22. Kf2 {[%emt 0:01:38]} h5 {[%emt 0:15:26]} 23. Rd1 {[%emt 0:02:20]} Bxe3+ {[%emt 0:00:49]} 24. Kxe3 {[%emt 0:00:46]} Rc5 {[%emt 0:03:55]} 25. Rcd2 {[%emt 0:02:33]} Kg7 {[%emt 0:01:43]} 26. h4 {[%emt 0:03:37]} Rf8 {[%emt 0:02:08]} 27. g3 {[%emt 0:01:42]} b6 {[%emt 0:05:07]} 28. Rf1 {[%emt 0:01:37]} Rxf1 {[%emt 0:01:57]} 29. Bxf1 {[%emt 0:00:04]} Re5 {[%emt 0:02:20]} 30. Bg2 {[%emt 0:07:42]} g5 {[%emt 0:08:11]} 31. Rf2 {[%emt 0:02:14]} Kg6 {[%emt 0:02:40]} 32. Bh3 {[%emt 0:03:35]} g4 {[%emt 0:00:40]} 33. Bg2 {[%emt 0:00:07]} b5 {[%emt 0:05:55]} 34. Rf5 {[%emt 0:06:12]} b4 {[%emt 0:06:31]} 35. Rxe5 {[%emt 0:00:58]} dxe5 {[%emt 0:00:06]} 36. a3 {[%emt 0:00:28]} bxa3 {[%emt 0:05:06]} 37. bxa3 {[%emt 0:00:06]} Nc5 {[%emt 0:01:11]} 38. Kd2 {[%emt 0:00:26]} Kf6 {[%emt 0:00:17]} 39. Kc3 {[%emt 0:01:09]} Ke6 {[%emt 0:01:24]} 40. Kb4 {[%emt 0:00:56]} Kd6 {[%emt 0:00:33]} 41. Kb5 {[%emt 0:35:07]} e6 {[%emt 0:31:42]} 42. Kb6 {[%emt 0:00:00]} Nd3 {[%emt 0:00:00]} 43. Bf1 {[%emt 0:00:00]} Nc5 {[%emt 0:00:00]} 44. Bg2 {[%emt 0:00:00]} Nd3 {[%emt 0:00:00]} 45. Kb5 {[%emt 0:00:00]} Nc5 {[%emt 0:00:00]} 46. Bh1 {[%emt 0:00:00]} Nd3 {[%emt 0:00:00]} 47. Bg2 {[%emt 0:00:00]} Nc5 {[%emt 0:00:00]} 48. Kb6 {[%emt 0:00:26]} Nd3 {[%emt 0:00:00]} 49. Bf1 {[%emt 0:01:48]} Nc5 {[%emt 0:00:00]} 50. Bg2 {[%emt 0:01:22]} Nd3 {[%emt 0:00:00]} 1/2-1/2

[Event "Krakow Championship-B 2022"]
[Site "Krakow"]
[Date "2022.07.01"]
[Round "8.11"]
[White "Matuszczyk, Mateusz"]
[Black "Radzimski, Antoni"]
[Result "1-0"]
[ECO "C42"]
[WhiteElo "1830"]
[BlackElo "1612"]
[Annotator "NA COMBH RC"]
[PlyCount "37"]
[EventDate "2022.06.25"]
[EventType "swiss"]
[EventCountry "POL"]
[SourceTitle "playchess.com"]
[Source "ChessBase"]
[SourceQuality "1"]
[TimeControl "40/5400+30:1800+30"]

1. e4 {[%emt 0:00:02]} e5 {[%emt 0:00:02]} 2. Nf3 {[%emt 0:00:04]} Nf6 {[%emt 0:00:23]} 3. Nxe5 {[%emt 0:00:05]} d6 {[%emt 0:00:06]} 4. Nf3 {[%emt 0:00:04]} Nxe4 {[%emt 0:00:56]} 5. c4 {[%emt 0:00:48]} Be7 {[%emt 0:02:03]} 6. d4 {[%emt 0:00:15]} d5 {[%emt 0:04:02]} 7. Nc3 {[%emt 0:00:22]} Nxc3 {[%emt 0:09:42]} 8. bxc3 {[%emt 0:00:06]} O-O {[%emt 0:01:31]} 9. cxd5 {[%emt 0:04:16]} Qxd5 {[%emt 0:02:16]} 10. Be2 {[%emt 0:00:27]} c6 {[%emt 0:08:48]} 11. O-O {[%emt 0:01:17]} b5 {[%emt 0:02:22]} 12. Ne5 {[%emt 0:11:58]} Be6 {[%emt 0:13:00]} 13. a4 {[%emt 0:05:17]} bxa4 {[%emt 0:02:55]} 14. Bc4 {[%emt 0:23:46]} Qa5 {[%emt 0:02:46]} 15. Rxa4 {[%emt 0:11:41]} Qxc3 {[%emt 0:08:56]} 16. Bxe6 {[%emt 0:00:20]} fxe6 {[%emt 0:00:06]} 17. Re1 {[%emt 0:01:59]} Rd8 {[%emt 0:07:03]} 18. Re3 {[%emt 0:00:59]} Qc5 {[%emt 0:00:32] 8.13} 19. Ba3 {[%emt 0:01:50]} 1-0

[Event "Krakow Championship-B 2022"]
[Site "Krakow"]
[Date "2022.07.01"]
[Round "8.12"]
[White "Karut, Kacper"]
[Black "Al-Hajiri, Bader"]
[Result "1/2-1/2"]
[ECO "C80"]
[WhiteElo "1775"]
[BlackElo "2052"]
[Annotator "NA RC"]
[PlyCount "75"]
[EventDate "2022.06.25"]
[EventType "swiss"]
[EventCountry "POL"]
[SourceTitle "playchess.com"]
[Source "ChessBase"]
[SourceQuality "1"]
[TimeControl "40/5400+30:1800+30"]

1. e4 {[%emt 0:00:02]} e5 {[%emt 0:02:30]} 2. Nf3 {[%emt 0:00:08]} Nc6 {[%emt 0:00:07]} 3. Bb5 {[%emt 0:00:08]} a6 {[%emt 0:01:08]} 4. Ba4 {[%emt 0:00:07]} Nf6 {[%emt 0:00:18]} 5. O-O {[%emt 0:00:34]} Nxe4 {[%emt 0:02:42]} 6. d4 {[%emt 0:01:08]} b5 {[%emt 0:00:34]} 7. Bb3 {[%emt 0:00:18]} d5 {[%emt 0:00:05]} 8. dxe5 {[%emt 0:00:40]} Be6 {[%emt 0:00:10]} 9. Be3 {[%emt 0:00:50]} Bc5 {[%emt 0:05:12]} 10. Qe2 {[%emt 0:07:38]} O-O {[%emt 0:09:30]} 11. Rd1 {[%emt 0:13:38]} Bxe3 {[%emt 0:06:12]} 12. Qxe3 {[%emt 0:01:13]} Na5 {[%emt 0:00:09]} 13. Nbd2 {[%emt 0:06:46]} Nxb3 {[%emt 0:00:42]} 14. axb3 {[%emt 0:07:46]} Nxd2 {[%emt 0:02:46]} 15. Rxd2 {[%emt 0:00:49]} Qe7 {[%emt 0:01:09]} 16. Nd4 {[%emt 0:04:03]} Bd7 {[%emt 0:01:11]} 17. Ne2 {[%emt 0:07:37]} c6 {[%emt 0:01:21]} 18. Nf4 {[%emt 0:07:31]} Rfe8 {[%emt 0:04:25]} 19. Re2 {[%emt 0:04:50]} Bf5 {[%emt 0:01:27]} 20. Qb6 {[%emt 0:02:50]} Be4 {[%emt 0:05:13]} 21. Qxc6 {[%emt 0:11:40]} Qxe5 {[%emt 0:00:24]} 22. Nd3 {[%emt 0:00:38]} Qg5 {[%emt 0:04:12]} 23. f4 {[%emt 0:02:00]} Qg4 {[%emt 0:00:42]} 24. Rae1 {[%emt 0:01:23]} h6 {[%emt 0:11:16]} 25. Nc5 {[%emt 0:05:46]} Rac8 {[%emt 0:11:36]} 26. Qd6 {[%emt 0:00:56]} Bxg2 {[%emt 0:04:25]} 27. Rxe8+ {[%emt 0:00:58]} Kh7 {[%emt 0:00:21]} 28. Qd7 {[%emt 0:06:21]} f5 {[%emt 0:00:12]} 29. R1e3 {[%emt 0:02:39]} Be4+ {[%emt 0:07:27]} 30. Rg3 {[%emt 0:02:33]} Qd1+ {[%emt 0:00:07]} 31. Kf2 {[%emt 0:00:09]} Qxc2+ {[%emt 0:00:04]} 32. Ke1 {[%emt 0:02:17]} Qc1+ {[%emt 0:00:18]} 33. Ke2 {[%emt 0:00:06]} Qxb2+ {[%emt 0:00:06]} 34. Ke1 {[%emt 0:00:26]} Qc1+ {[%emt 0:05:52]} 35. Ke2 {[%emt 0:00:16]} Qc2+ {[%emt 0:04:56]} 36. Ke1 {[%emt 0:00:09]} Qc1+ {[%emt 0:01:35]} 37. Ke2 {[%emt 0:00:06]} Qc2+ {[%emt 0:00:10]} 38. Ke1 1/2-1/2